[Event "34rd NATO Championship 2024"]
[Site "Rhodes"]
[Date "2024.10.21"]
[Round "1.10"]
[White "Dino, Giuseppe"]
[Black "Rahmanidis, Petros"]
[Result "0-1"]
[ECO "A09"]
[WhiteElo "1884"]
[BlackElo "2219"]
[Annotator "RC"]
[PlyCount "136"]
[EventDate "2024.09.18"]
[EventType "swiss"]
[EventCountry "GRE"]
[SourceTitle "playchess.com"]
[Source "ChessBase"]
[SourceQuality "1"]
[TimeControl "5400+30"]

1. g3 {[%emt 0:00:06]} d5 {[%emt 0:00:37]} 2. Bg2 {[%emt 0:00:06]} Nf6 {[%emt 0:01:22]} 3. d3 {[%emt 0:00:06]} e5 {[%emt 0:00:50]} 4. c4 {[%emt 0:01:46]} d4 {[%emt 0:04:44]} 5. Nf3 {[%emt 0:10:10]} Nc6 {[%emt 0:02:09]} 6. O-O {[%emt 0:03:12]} h6 {[%emt 0:27:32]} 7. Qa4 {[%emt 0:07:33]} Bd7 {[%emt 0:03:58]} 8. Bd2 {[%emt 0:20:42]} Bc5 {[%emt 0:22:24]} 9. Qc2 {[%emt 0:10:03]} a5 {[%emt 0:03:10]} 10. a3 {[%emt 0:00:42]} O-O {[%emt 0:03:45]} 11. Ra2 {[%emt 0:01:32]} Re8 {[%emt 0:05:43]} 12. Bc1 {[%emt 0:14:13]} Be6 {[%emt 0:13:37]} 13. Nbd2 {[%emt 0:00:26]} Nd7 {[%emt 0:00:46]} 14. Ne4 {[%emt 0:00:15]} Bf8 {[%emt 0:00:20]} 15. b3 {[%emt 0:00:51]} f5 {[%emt 0:00:52]} 16. Ned2 {[%emt 0:00:01]} Nf6 {[%emt 0:01:01]} 17. Nh4 {[%emt 0:01:00]} Bc5 {[%emt 0:01:44]} 18. Ng6 {[%emt 0:04:42]} Bf7 {[%emt 0:00:49]} 19. Nh4 {[%emt 0:00:06]} Qd7 {[%emt 0:00:29]} 20. Kh1 {[%emt 0:05:03]} g5 {[%emt 0:01:00]} 21. Nhf3 {[%emt 0:00:01]} Rad8 {[%emt 0:02:27]} 22. Ne1 {[%emt 0:00:22]} Bh5 {[%emt 0:00:49]} 23. f3 {[%emt 0:00:15]} Bg6 {[%emt 0:00:27]} 24. Ra1 {[%emt 0:01:05]} Kh7 {[%emt 0:00:26]} 25. Rb1 {[%emt 0:00:01]} Qe7 {[%emt 0:00:26]} 26. Ra1 {[%emt 0:00:42]} Kg7 {[%emt 0:00:40]} 27. Ra2 {[%emt 0:00:21]} Bh7 {[%emt 0:01:06]} 28. Kg1 {[%emt 0:02:12]} Kh8 {[%emt 0:00:08]} 29. Kh1 {[%emt 0:00:34]} h5 {[%emt 0:00:14]} 30. Nb1 {[%emt 0:00:14]} Rg8 {[%emt 0:01:08]} 31. h3 {[%emt 0:02:46]} e4 {[%emt 0:00:42]} 32. Bd2 {[%emt 0:05:47]} e3 {[%emt 0:00:21]} 33. Bxa5 {[%emt 0:00:01]} Bd6 {[%emt 0:00:19]} 34. c5 {[%emt 0:00:28]} Bxg3 {[%emt 0:00:30]} 35. Bb4 {[%emt 0:00:25]} f4 {[%emt 0:00:41]} 36. Qc4 {[%emt 0:00:13]} Bf5 {[%emt 0:00:31]} 37. Nc2 {[%emt 0:01:00]} Qd7 {[%emt 0:00:34]} 38. Be1 {[%emt 0:00:02]} h4 {[%emt 0:00:36]} 39. Nb4 {[%emt 0:00:38]} Ne5 {[%emt 0:00:27]} 40. c6 {[%emt 0:00:43]} Qd6 {[%emt 0:00:27]} 41. Qb5 {[%emt 0:00:20]} b6 {[%emt 0:00:31]} 42. a4 {[%emt 0:00:53]} Bxe1 {[%emt 0:00:31]} 43. Rxe1 {[%emt 0:00:02]} Ra8 {[%emt 0:00:29]} 44. a5 {[%emt 0:01:03]} bxa5 {[%emt 0:00:08]} 45. Rxa5 {[%emt 0:00:01]} Rxa5 {[%emt 0:00:28]} 46. Qxa5 {[%emt 0:00:01]} Rb8 {[%emt 0:00:39]} 47. Na6 {[%emt 0:00:03]} Rb6 {[%emt 0:00:32]} 48. Nc5 {[%emt 0:01:08]} Nxc6 {[%emt 0:00:34]} 49. Qa8+ {[%emt 0:00:01]} Rb8 {[%emt 0:00:16]} 50. Qa3 {[%emt 0:00:02]} Nd7 {[%emt 0:00:53]} 51. Rc1 {[%emt 0:03:00]} Kh7 {[%emt 0:00:33]} 52. Ne4 {[%emt 0:00:39]} Bxe4 {[%emt 0:00:23]} 53. Qxd6 {[%emt 0:00:05]} cxd6 {[%emt 0:00:08]} 54. fxe4 {[%emt 0:00:02]} Nde5 {[%emt 0:00:30]} 55. Na3 {[%emt 0:00:09]} Rxb3 {[%emt 0:00:46]} 56. Nc4 {[%emt 0:00:01]} Nxc4 {[%emt 0:00:42]} 57. Rxc4 {[%emt 0:00:01]} Rb6 {[%emt 0:00:23]} 58. Kg1 {[%emt 0:00:50]} Kg7 {[%emt 0:00:17]} 59. Bf3 {[%emt 0:00:23]} Kf7 {[%emt 0:00:20]} 60. Kg2 {[%emt 0:00:08]} Ke7 {[%emt 0:00:32]} 61. Bg4 {[%emt 0:00:27]} Kd8 {[%emt 0:00:42]} 62. Be6 {[%emt 0:00:11]} Ne5 {[%emt 0:00:46]} 63. Rxd4 {[%emt 0:01:10]} Rb2 {[%emt 0:00:14]} 64. Bg4 {[%emt 0:02:00]} Nxg4 {[%emt 0:00:08]} 65. hxg4 {[%emt 0:00:01]} Rxe2+ {[%emt 0:00:10]} 66. Kg1 {[%emt 0:00:45]} f3 {[%emt 0:00:45]} 67. Rxd6+ {[%emt 0:00:02]} Ke7 {[%emt 0:00:11]} 68. Rd5 {[%emt 0:01:35]} Re1+ {[%emt 0:00:38]} 0-1

[Event "34rd NATO Championship 2024"]
[Site "Rhodes"]
[Date "2024.10.21"]
[Round "1.11"]
[White "Pietruszewski, Marcin"]
[Black "Sherpa, Ngadi"]
[Result "1-0"]
[ECO "D11"]
[WhiteElo "2174"]
[BlackElo "1882"]
[Annotator "RC"]
[PlyCount "71"]
[EventDate "2024.09.18"]
[EventType "swiss"]
[EventCountry "GRE"]
[SourceTitle "playchess.com"]
[Source "ChessBase"]
[SourceQuality "1"]
[TimeControl "5400+30"]

1. d4 {[%emt 0:00:08]} c6 {[%emt 0:00:31]} 2. c4 {[%emt 0:00:50]} d5 {[%emt 0:00:27]} 3. Nf3 {[%emt 0:00:06]} Nf6 {[%emt 0:00:43]} 4. e3 {[%emt 0:00:08]} Bg4 {[%emt 0:00:21]} 5. h3 {[%emt 0:14:29]} Bxf3 {[%emt 0:03:17]} 6. Qxf3 {[%emt 0:01:03]} Nbd7 {[%emt 0:01:17]} 7. Nc3 {[%emt 0:00:46]} e6 {[%emt 0:04:01]} 8. Bd3 {[%emt 0:00:45]} Bb4 {[%emt 0:00:44]} 9. O-O {[%emt 0:02:39]} O-O {[%emt 0:02:01]} 10. Rd1 {[%emt 0:00:36]} h6 {[%emt 0:04:18]} 11. Bd2 {[%emt 0:00:18]} Bd6 {[%emt 0:01:15]} 12. Rac1 {[%emt 0:30:54]} Re8 {[%emt 0:04:37]} 13. e4 {[%emt 0:01:51]} dxe4 {[%emt 0:01:41]} 14. Nxe4 {[%emt 0:00:07]} Nxe4 {[%emt 0:04:08]} 15. Bxe4 {[%emt 0:03:54]} Nf6 {[%emt 0:00:59]} 16. Bb1 {[%emt 0:00:12]} Bb8 {[%emt 0:10:23]} 17. Bc3 {[%emt 0:02:06]} Qc7 {[%emt 0:01:20]} 18. g3 {[%emt 0:00:10]} Nh7 {[%emt 0:00:30]} 19. Qd3 {[%emt 0:00:30]} Nf8 {[%emt 0:00:30]} 20. Bb4 {[%emt 0:00:30]} f5 {[%emt 0:00:30]} 21. h4 {[%emt 0:09:11]} Ng6 {[%emt 0:27:08]} 22. Re1 {[%emt 0:07:47]} Qf7 {[%emt 0:03:51]} 23. h5 {[%emt 0:07:50]} Nf8 {[%emt 0:00:49]} 24. d5 {[%emt 0:15:40]} Qxh5 {[%emt 0:08:10]} 25. dxe6 {[%emt 0:00:00]} Rxe6 {[%emt 0:02:22]} 26. Bxf8 {[%emt 0:00:00]} Rxe1+ {[%emt 0:03:41]} 27. Rxe1 Bxg3 {[%emt 0:06:29]} 28. Qxg3 {[%emt 0:00:00]} Rxf8 {[%emt 0:00:47]} 29. Re7 {[%emt 0:00:00]} g5 {[%emt 0:02:32]} 30. Bd3 {[%emt 0:00:00]} Rd8 {[%emt 0:06:08]} 31. Be2 {[%emt 0:03:30]} Qg6 {[%emt 0:00:30]} 32. Qe5 {[%emt 0:00:00]} g4 {[%emt 0:00:00]} 33. c5 {[%emt 0:00:00]} Kf8 {[%emt 0:00:00]} 34. Bc4 {[%emt 0:00:00]} Rd5 {[%emt 0:00:00]} 35. Bxd5 {[%emt 0:00:00]} cxd5 {[%emt 0:00:00]} 36. Rxb7 {[%emt 0:00:00]} 1-0

[Event "34rd NATO Championship 2024"]
[Site "Rhodes"]
[Date "2024.10.21"]
[Round "1.12"]
[White "Steffers, Hendrik"]
[Black "Pavlidou, Ekaterini"]
[Result "0-1"]
[ECO "C10"]
[WhiteElo "1882"]
[BlackElo "2153"]
[Annotator "RC"]
[PlyCount "116"]
[EventDate "2024.09.18"]
[EventType "swiss"]
[EventCountry "GRE"]
[SourceTitle "playchess.com"]
[Source "ChessBase"]
[SourceQuality "1"]
[TimeControl "5400+30"]

1. d4 {[%emt 0:00:23]} Nf6 {[%emt 0:00:13]} 2. Nf3 {[%emt 0:00:13]} e6 {[%emt 0:00:34]} 3. Nc3 {[%emt 0:00:54]} d5 {[%emt 0:00:41]} 4. Bg5 {[%emt 0:01:16]} Nbd7 {[%emt 0:01:07]} 5. e4 {[%emt 0:04:02]} dxe4 {[%emt 0:00:51]} 6. Nxe4 {[%emt 0:00:25]} Be7 {[%emt 0:01:55]} 7. Nxf6+ {[%emt 0:01:14]} Nxf6 {[%emt 0:01:37]} 8. Be2 {[%emt 0:03:31]} O-O {[%emt 0:05:20]} 9. O-O {[%emt 0:00:20]} h6 {[%emt 0:04:10]} 10. Bh4 {[%emt 0:01:33]} Ne4 {[%emt 0:06:12]} 11. Bxe7 {[%emt 0:00:37]} Qxe7 {[%emt 0:00:07]} 12. Qd3 {[%emt 0:01:37]} Nd6 {[%emt 0:04:36]} 13. Ne5 {[%emt 0:04:34]} Rd8 {[%emt 0:01:58]} 14. c3 {[%emt 0:07:51]} Bd7 {[%emt 0:05:13]} 15. Qh3 {[%emt 0:07:10]} Be8 {[%emt 0:04:32]} 16. Bd3 {[%emt 0:02:42]} f6 {[%emt 0:07:15]} 17. Ng4 {[%emt 0:13:17]} Nf7 {[%emt 0:06:42]} 18. f4 {[%emt 0:03:10]} Rd6 {[%emt 0:05:18]} 19. Rae1 {[%emt 0:01:32]} Rad8 {[%emt 0:03:58]} 20. Ne3 {[%emt 0:44:09]} Qd7 {[%emt 0:38:11]} 21. Bc4 {[%emt 0:00:00]} b5 {[%emt 0:00:00]} 22. Bb3 {[%emt 0:00:00]} Qc6 23. Nd1 {[%emt 0:01:30]} Bd7 {[%emt 0:01:30]} 24. Nf2 {[%emt 0:00:30]} Bc8 {[%emt 0:00:30]} 25. Ne4 {[%emt 0:00:00]} Rd5 {[%emt 0:00:30]} 26. Qg3 {[%emt 0:00:00]} Rf5 {[%emt 0:00:00]} 27. Nc5 {[%emt 0:00:00]} Rd6 {[%emt 0:00:00]} 28. Bc2 {[%emt 0:00:00]} Rxc5 {[%emt 0:01:30]} 29. dxc5 {[%emt 0:00:00]} Qxc5+ {[%emt 0:00:00]} 30. Kh1 {[%emt 0:00:00]} Rd2 {[%emt 0:00:00]} 31. Bb3 {[%emt 0:00:00]} Bb7 {[%emt 0:00:00]} 32. Rg1 {[%emt 0:00:00]} Nd6 {[%emt 0:00:00]} 33. Rxe6 {[%emt 0:00:00]} Kh7 {[%emt 0:01:08]} 34. Bc2+ {[%emt 0:00:37]} Rxc2 {[%emt 0:00:48]} 35. Rxd6 {[%emt 0:00:02]} Rxg2 {[%emt 0:00:40]} 36. Rxg2 {[%emt 0:00:05]} Bxg2+ {[%emt 0:00:16]} 37. Kxg2 {[%emt 0:00:47]} Qxd6 {[%emt 0:00:11]} 38. Qe3 {[%emt 0:00:25]} Qd5+ {[%emt 0:00:36]} 39. Kg3 {[%emt 0:00:37]} a5 {[%emt 0:00:31]} 40. h4 {[%emt 0:00:23]} c6 {[%emt 0:01:01]} 41. b3 {[%emt 0:00:17]} h5 {[%emt 0:00:26]} 42. Qe2 {[%emt 0:00:29]} Kh6 {[%emt 0:00:49]} 43. Qe3 {[%emt 0:00:37]} Kh7 {[%emt 0:00:22]} 44. Qe2 {[%emt 0:00:06]} Qf5 {[%emt 0:00:26]} 45. Qf3 {[%emt 0:02:11]} c5 {[%emt 0:00:04]} 46. Qe2 {[%emt 0:00:18]} b4 {[%emt 0:00:09]} 47. cxb4 {[%emt 0:00:23]} cxb4 {[%emt 0:00:10]} 48. Qd1 {[%emt 0:00:50]} Qg6+ {[%emt 0:00:32]} 49. Kh3 {[%emt 0:00:15]} f5 {[%emt 0:00:29]} 50. Qd4 {[%emt 0:01:38]} Qg4+ {[%emt 0:00:16]} 51. Kh2 {[%emt 0:00:00]} Qxh4+ {[%emt 0:00:49]} 52. Kg2 {[%emt 0:00:06]} Qg4+ {[%emt 0:00:11]} 53. Kh1 {[%emt 0:00:42]} Qf3+ {[%emt 0:00:33]} 54. Kg1 {[%emt 0:00:37]} h4 {[%emt 0:00:24]} 55. Qd8 {[%emt 0:01:46]} Qg4+ {[%emt 0:00:12]} 56. Kh1 {[%emt 0:00:14]} Qxf4 {[%emt 0:00:49]} 57. Qxa5 {[%emt 0:00:03]} Qf3+ {[%emt 0:00:18]} 58. Kh2 {[%emt 0:00:21]} h3 {[%emt 0:00:11]} 0-1

[Event "34rd NATO Championship 2024"]
[Site "Rhodes"]
[Date "2024.10.21"]
[Round "1.13"]
[White "Bohn, Ulrich"]
[Black "Middaugh, Jon S"]
[Result "1-0"]
[ECO "B07"]
[WhiteElo "2149"]
[BlackElo "1877"]
[Annotator "RC"]
[PlyCount "71"]
[EventDate "2024.09.18"]
[EventType "swiss"]
[EventCountry "GRE"]
[SourceTitle "playchess.com"]
[Source "ChessBase"]
[SourceQuality "1"]
[TimeControl "5400+30"]

1. d4 {[%emt 0:00:12]} Nf6 {[%emt 0:00:14]} 2. Bf4 {[%emt 0:00:07]} d6 {[%emt 0:00:28]} 3. Nc3 {[%emt 0:00:05]} g6 {[%emt 0:00:27]} 4. e4 {[%emt 0:00:11]} Bg7 {[%emt 0:00:50]} 5. Qd2 {[%emt 0:00:12]} O-O {[%emt 0:00:41]} 6. O-O-O {[%emt 0:00:07]} c6 {[%emt 0:01:26]} 7. Bh6 {[%emt 0:00:30]} Qc7 {[%emt 0:03:50]} 8. f3 {[%emt 0:07:24]} e5 {[%emt 0:01:39]} 9. d5 {[%emt 0:05:55]} Ne8 {[%emt 0:08:44]} 10. g4 {[%emt 0:01:37]} Nd7 {[%emt 0:01:52]} 11. h4 {[%emt 0:01:18]} Nb6 {[%emt 0:01:31]} 12. dxc6 {[%emt 0:07:48]} bxc6 {[%emt 0:01:44]} 13. h5 {[%emt 0:02:15]} f6 {[%emt 0:04:28]} 14. hxg6 {[%emt 0:00:59]} hxg6 {[%emt 0:00:26]} 15. Be3 {[%emt 0:02:04]} Be6 {[%emt 0:01:43]} 16. b3 {[%emt 0:04:53]} Qe7 {[%emt 0:12:11]} 17. Qf2 {[%emt 0:04:54]} Qc7 {[%emt 0:10:32]} 18. Nge2 {[%emt 0:01:14]} Kf7 {[%emt 0:18:56]} 19. f4 {[%emt 0:19:58]} Bxg4 {[%emt 0:04:52]} 20. fxe5 {[%emt 0:00:28]} dxe5 {[%emt 0:01:34]} 21. Qg3 {[%emt 0:00:40]} f5 {[%emt 0:06:04]} 22. Bh3 {[%emt 0:14:45]} Nf6 {[%emt 0:01:43]} 23. Bxg4 {[%emt 0:07:10]} Nxg4 {[%emt 0:00:19]} 24. exf5 {[%emt 0:02:39]} gxf5 {[%emt 0:01:11]} 25. Bc5 {[%emt 0:00:06]} Rg8 {[%emt 0:04:17]} 26. Rdf1 {[%emt 0:07:48]} Bh6+ {[%emt 0:01:49]} 27. Kb1 {[%emt 0:00:24]} Bf4 {[%emt 0:00:40]} 28. Rh7+ {[%emt 0:02:05]} Rg7 {[%emt 0:00:47]} 29. Qh3 {[%emt 0:00:33]} Rag8 {[%emt 0:02:15]} 30. Qh5+ {[%emt 0:00:19]} Kf6 {[%emt 0:01:20]} 31. Rxg7 {[%emt 0:02:26]} Rxg7 {[%emt 0:00:48]} 32. Nxf4 {[%emt 0:00:18]} exf4 {[%emt 0:00:27]} 33. Bd4+ {[%emt 0:00:02]} Ke6 {[%emt 0:01:05]} 34. Re1+ {[%emt 0:01:15]} Kd6 {[%emt 0:01:16]} 35. Qxf5 {[%emt 0:00:15]} Qf7 {[%emt 0:01:23]} 36. Bc5+ {[%emt 0:02:43]} 1-0

[Event "34rd NATO Championship 2024"]
[Site "Rhodes"]
[Date "2024.10.21"]
[Round "1.14"]
[White "Steen, Kris"]
[Black "Jauk, Wilhelm"]
[Result "1/2-1/2"]
[ECO "B01"]
[WhiteElo "1876"]
[BlackElo "2143"]
[Annotator "RC"]
[PlyCount "41"]
[EventDate "2024.09.18"]
[EventType "swiss"]
[EventCountry "GRE"]
[SourceTitle "playchess.com"]
[Source "ChessBase"]
[SourceQuality "1"]
[TimeControl "5400+30"]

1. e4 {[%emt 0:00:04]} d5 {[%emt 0:00:08]} 2. exd5 {[%emt 0:00:08]} Qxd5 {[%emt 0:00:05]} 3. Nc3 {[%emt 0:00:12]} Qa5 {[%emt 0:00:15]} 4. d4 {[%emt 0:00:15]} Nf6 {[%emt 0:00:21]} 5. Bd2 {[%emt 0:00:08]} c6 {[%emt 0:00:48]} 6. Ne4 {[%emt 0:04:25]} Qb6 {[%emt 0:03:55]} 7. Nxf6+ {[%emt 0:00:11]} exf6 {[%emt 0:01:12]} 8. Qe2+ {[%emt 0:09:55]} Be6 {[%emt 0:02:47]} 9. O-O-O {[%emt 0:01:16]} Qxd4 {[%emt 0:16:50]} 10. Nf3 {[%emt 0:22:41]} Qa4 {[%emt 0:07:00]} 11. a3 {[%emt 0:05:30]} Bxa3 {[%emt 0:03:52]} 12. Bc3 {[%emt 0:01:00]} Bc5 {[%emt 0:59:17]} 13. b3 {[%emt 0:06:48]} Qf4+ {[%emt 0:00:00]} 14. Kb1 {[%emt 0:02:44]} O-O {[%emt 0:00:00]} 15. Nd4 {[%emt 0:03:37]} Bxd4 {[%emt 0:00:00]} 16. Rxd4 {[%emt 0:00:08]} Qc7 {[%emt 0:00:00]} 17. Qf3 {[%emt 0:00:08]} Nd7 {[%emt 0:00:00]} 18. Qh5 {[%emt 0:01:57]} Rfe8 {[%emt 0:00:00]} 19. Bd3 {[%emt 0:01:11]} Nf8 {[%emt 0:00:00]} 20. Bxh7+ {[%emt 0:04:04]} Nxh7 {[%emt 0:00:00]} 21. Rh4 {[%emt 0:00:05]} 1/2-1/2

[Event "34rd NATO Championship 2024"]
[Site "Rhodes"]
[Date "2024.10.21"]
[Round "1.15"]
[White "Casteleijn, Diederick"]
[Black "Bublys, Vaidotas"]
[Result "1-0"]
[ECO "A09"]
[WhiteElo "2128"]
[BlackElo "1872"]
[Annotator "RC"]
[PlyCount "45"]
[EventDate "2024.09.18"]
[EventType "swiss"]
[EventCountry "GRE"]
[SourceTitle "playchess.com"]
[Source "ChessBase"]
[SourceQuality "1"]
[TimeControl "5400+30"]

1. Nf3 {[%emt 0:00:10]} d5 {[%emt 0:00:51]} 2. c4 {[%emt 0:00:08]} Nf6 {[%emt 0:01:03]} 3. e3 {[%emt 1:31:42]} g6 {[%emt 0:02:59]} 4. cxd5 {[%emt 0:00:00]} Nxd5 {[%emt 0:01:24]} 5. Nc3 {[%emt 0:00:00]} Bg7 {[%emt 0:03:24]} 6. Qb3 {[%emt 0:00:00]} Nb6 {[%emt 0:06:41]} 7. h4 {[%emt 0:00:00]} Be6 {[%emt 0:03:46]} 8. Qc2 {[%emt 0:00:00]} Bg4 {[%emt 0:04:51]} 9. Nh2 {[%emt 0:00:00]} Bf5 {[%emt 0:04:22]} 10. e4 {[%emt 0:00:00]} Be6 {[%emt 0:00:13]} 11. Bb5+ {[%emt 0:00:00]} c6 {[%emt 0:01:23]} 12. Be2 {[%emt 0:00:00]} N8d7 {[%emt 0:07:39]} 13. d3 {[%emt 0:00:00]} Qc7 {[%emt 0:04:12]} 14. Be3 {[%emt 0:00:00]} f5 {[%emt 0:03:53]} 15. Nf3 {[%emt 0:00:00]} f4 {[%emt 0:03:07]} 16. Bd2 {[%emt 0:00:00]} O-O-O {[%emt 0:01:37]} 17. O-O-O {[%emt 0:00:00]} Ne5 {[%emt 0:08:44]} 18. Ng5 {[%emt 0:00:00]} Bg8 {[%emt 0:03:17]} 19. Nh3 {[%emt 0:00:00]} Bh6 {[%emt 0:06:21]} 20. g3 {[%emt 0:00:00]} Be6 {[%emt 0:06:15]} 21. Nxf4 {[%emt 0:00:00]} Bg4 {[%emt 0:01:13]} 22. Bxg4+ {[%emt 0:00:00]} Nxg4 {[%emt 0:00:17]} 23. Ne6 {[%emt 0:00:00]} 1-0

[Event "34rd NATO Championship 2024"]
[Site "Rhodes"]
[Date "2024.10.21"]
[Round "1.16"]
[White "Simard, Francois"]
[Black "Circenis, Kaspars"]
[Result "0-1"]
[ECO "D43"]
[WhiteElo "1868"]
[BlackElo "2120"]
[Annotator "RC"]
[PlyCount "64"]
[EventDate "2024.09.18"]
[EventType "swiss"]
[EventCountry "GRE"]
[SourceTitle "playchess.com"]
[Source "ChessBase"]
[SourceQuality "1"]
[TimeControl "5400+30"]

1. d4 {[%emt 0:00:05]} Nf6 {[%emt 0:00:02]} 2. c4 {[%emt 0:00:07]} e6 {[%emt 0:00:10]} 3. Nc3 {[%emt 0:00:08]} d5 {[%emt 0:00:15]} 4. Nf3 {[%emt 0:00:21]} Bb4 {[%emt 0:01:29]} 5. Bg5 {[%emt 0:03:27]} c6 {[%emt 0:00:42]} 6. Qc2 {[%emt 0:08:17]} h6 {[%emt 0:02:36]} 7. Bxf6 {[%emt 0:02:19]} Qxf6 {[%emt 0:00:03]} 8. e3 {[%emt 0:00:22]} Nd7 {[%emt 0:00:54]} 9. cxd5 {[%emt 0:02:43]} exd5 {[%emt 0:00:15]} 10. Bd3 {[%emt 0:00:58]} O-O {[%emt 0:00:24]} 11. O-O {[%emt 0:00:17]} g5 {[%emt 0:08:03]} 12. Bf5 {[%emt 0:09:51]} h5 {[%emt 0:12:47]} 13. g4 {[%emt 0:04:16]} Kg7 {[%emt 0:03:28]} 14. Kg2 {[%emt 0:05:51]} Bd6 {[%emt 0:11:17]} 15. Ne2 {[%emt 0:09:11]} h4 {[%emt 0:07:22]} 16. Neg1 {[%emt 0:01:44]} Qd8 {[%emt 0:03:13]} 17. Nh3 {[%emt 0:02:21]} f6 {[%emt 0:05:05]} 18. Bg6 {[%emt 0:07:17]} Be7 {[%emt 0:04:33]} 19. Bh5 {[%emt 0:01:26]} f5 {[%emt 0:00:02]} 20. Ne5 {[%emt 0:09:28]} Nf6 {[%emt 0:12:44]} 21. Ng6 {[%emt 0:12:14]} fxg4 {[%emt 0:17:46]} 22. Nxg5 {[%emt 0:00:52]} Nxh5 {[%emt 0:01:10]} 23. Nxe7 {[%emt 0:00:09]} Qxe7 {[%emt 0:01:08]} 24. Qh7+ {[%emt 0:00:29]} Kf6 {[%emt 0:00:01]} 25. Qxh5 {[%emt 0:00:51]} h3+ {[%emt 0:00:48]} 26. Kg1 {[%emt 0:00:35]} Rg8 {[%emt 0:01:42]} 27. Nh7+ {[%emt 0:04:39]} Kg7 {[%emt 0:00:08]} 28. Ng5 {[%emt 0:00:16]} Rh8 {[%emt 0:00:41]} 29. Ne6+ {[%emt 0:00:44]} Bxe6 {[%emt 0:00:45]} 30. Qe5+ {[%emt 0:00:10]} Qf6 {[%emt 0:00:14]} 31. Qc7+ {[%emt 0:00:32]} Kg6 {[%emt 0:00:02]} 32. Qg3 {[%emt 0:00:20]} Qf3 {[%emt 0:00:36]} 0-1

[Event "34rd NATO Championship 2024"]
[Site "Rhodes"]
[Date "2024.10.21"]
[Round "1.17"]
[White "Mautone, Valerio"]
[Black "Smit, Jan"]
[Result "1-0"]
[ECO "B07"]
[WhiteElo "2117"]
[BlackElo "1866"]
[Annotator "RC"]
[PlyCount "61"]
[EventDate "2024.09.18"]
[EventType "swiss"]
[EventCountry "GRE"]
[SourceTitle "playchess.com"]
[Source "ChessBase"]
[SourceQuality "1"]
[TimeControl "5400+30"]

1. e4 {[%emt 0:00:08]} d6 {[%emt 0:00:22]} 2. d4 {[%emt 0:00:09]} g6 {[%emt 0:00:10]} 3. Nc3 {[%emt 0:00:47]} Bg7 {[%emt 0:00:11]} 4. Be3 {[%emt 0:00:34]} Nf6 {[%emt 0:00:23]} 5. Qd2 {[%emt 0:00:39]} c6 {[%emt 0:01:32]} 6. Bh6 {[%emt 0:00:22]} O-O {[%emt 1:30:52]} 7. Bxg7 {[%emt 1:31:21]} Kxg7 {[%emt 0:00:00]} 8. Bd3 {[%emt 0:00:00]} e5 {[%emt 0:00:00]} 9. Nge2 {[%emt 0:00:00]} Qc7 {[%emt 0:00:00]} 10. O-O {[%emt 0:00:00]} b5 {[%emt 0:00:00]} 11. a3 {[%emt 0:00:00]} a6 {[%emt 0:00:00]} 12. Kh1 {[%emt 0:00:00]} c5 {[%emt 0:00:00]} 13. dxe5 {[%emt 0:00:00]} dxe5 {[%emt 0:00:00]} 14. Ng3 {[%emt 0:00:00]} Nc6 {[%emt 0:00:00]} 15. f4 {[%emt 0:00:00]} c4 {[%emt 0:00:00]} 16. fxe5 {[%emt 0:00:00]} Qxe5 {[%emt 0:00:00]} 17. Be2 {[%emt 0:00:00]} Nd4 {[%emt 0:00:00]} 18. Rae1 {[%emt 0:00:00]} Be6 {[%emt 0:00:00]} 19. Bd1 {[%emt 0:00:00]} Rad8 {[%emt 0:00:00]} 20. Qc1 {[%emt 0:00:00]} h5 {[%emt 0:00:00]} 21. Rf4 {[%emt 0:00:00]} g5 {[%emt 0:00:00]} 22. Rff1 {[%emt 0:00:00]} h4 {[%emt 0:00:00]} 23. Nf5+ {[%emt 0:00:00]} Kg6 {[%emt 0:00:00]} 24. Nd5 {[%emt 0:00:00]} Bxd5 {[%emt 0:02:46]} 25. exd5 {[%emt 0:00:00]} Qxe1 {[%emt 0:00:05]} 26. Rxe1 {[%emt 0:00:06]} Nxf5 {[%emt 0:00:42]} 27. c3 {[%emt 0:01:25]} Kh6 {[%emt 0:01:15]} 28. Rf1 {[%emt 0:01:39]} Rxd5 {[%emt 0:01:02]} 29. Bc2 {[%emt 0:00:33]} Kg6 {[%emt 0:02:06]} 30. Bxf5+ {[%emt 0:01:01]} Rxf5 {[%emt 0:00:03]} 31. Qc2 {[%emt 0:07:16]} 1-0

[Event "34rd NATO Championship 2024"]
[Site "Rhodes"]
[Date "2024.10.21"]
[Round "1.18"]
[White "Risk, Gregory"]
[Black "Tetepoulidis, Ioannis"]
[Result "0-1"]
[ECO "E61"]
[WhiteElo "1862"]
[BlackElo "2100"]
[Annotator "RC"]
[PlyCount "84"]
[EventDate "2024.09.18"]
[EventType "swiss"]
[EventCountry "GRE"]
[SourceTitle "playchess.com"]
[Source "ChessBase"]
[SourceQuality "1"]
[TimeControl "5400+30"]

1. Nf3 {[%emt 0:00:05]} d6 {[%emt 0:00:04]} 2. d4 {[%emt 0:00:32]} Nf6 {[%emt 0:00:04]} 3. c4 {[%emt 0:00:13]} g6 {[%emt 0:00:05]} 4. Nc3 {[%emt 0:00:11]} Bf5 {[%emt 1:32:17]} 5. Qb3 {[%emt 0:01:20]} b6 {[%emt 0:00:00]} 6. g3 {[%emt 0:01:17]} Bg7 {[%emt 0:00:00]} 7. Bg2 {[%emt 0:00:12]} Nc6 {[%emt 0:00:00]} 8. O-O {[%emt 0:00:46]} O-O {[%emt 0:00:00]} 9. Qd1 {[%emt 0:05:38]} Ne4 {[%emt 0:00:00]} 10. Nxe4 {[%emt 0:08:48]} Bxe4 {[%emt 0:00:00]} 11. e3 {[%emt 0:00:44]} d5 {[%emt 0:00:00]} 12. Qe2 {[%emt 0:26:08]} e5 {[%emt 0:00:00]} 13. dxe5 {[%emt 0:02:26]} dxc4 {[%emt 0:00:00]} 14. Qxc4 {[%emt 0:05:26]} Bxf3 {[%emt 0:00:00]} 15. Bxf3 {[%emt 0:00:32]} Nxe5 {[%emt 0:00:00]} 16. Qe2 {[%emt 0:02:18]} Nxf3+ {[%emt 0:00:00]} 17. Qxf3 {[%emt 0:00:02]} Qf6 {[%emt 0:00:00]} 18. Qxf6 {[%emt 0:04:46]} Bxf6 {[%emt 0:00:00]} 19. Rb1 {[%emt 0:07:31]} c5 {[%emt 0:00:00]} 20. Rd1 {[%emt 0:06:56]} Rfd8 {[%emt 0:00:00]} 21. Bd2 {[%emt 0:03:09]} Kf8 {[%emt 0:00:00]} 22. Kf1 {[%emt 0:00:39]} Ke7 {[%emt 0:00:00]} 23. Ke2 {[%emt 0:00:05]} b5 {[%emt 0:00:00]} 24. b3 {[%emt 0:01:45]} Rac8 {[%emt 0:00:00]} 25. Rbc1 {[%emt 0:03:24]} c4 {[%emt 0:00:00]} 26. bxc4 {[%emt 0:06:39]} Rxc4 {[%emt 0:00:16]} 27. Rxc4 {[%emt 0:00:33]} bxc4 {[%emt 0:00:01]} 28. Bb4+ {[%emt 0:00:39]} Ke6 {[%emt 0:00:17]} 29. Rxd8 {[%emt 0:00:27]} Bxd8 {[%emt 0:00:05]} 30. Bc3 {[%emt 0:00:36]} Kd5 {[%emt 0:02:05]} 31. f3 {[%emt 0:00:23]} f5 {[%emt 0:03:31]} 32. h3 {[%emt 0:02:18]} h5 {[%emt 0:02:39]} 33. Kf2 {[%emt 0:04:50]} Bc7 {[%emt 0:00:36]} 34. g4 {[%emt 0:03:35]} hxg4 {[%emt 0:00:28]} 35. hxg4 {[%emt 0:00:02]} fxg4 {[%emt 0:00:27]} 36. fxg4 {[%emt 0:00:14]} Ke4 {[%emt 0:00:09]} 37. Ke2 {[%emt 0:00:24]} Bb6 {[%emt 0:00:38]} 38. Bd2 {[%emt 0:00:19]} Bc5 {[%emt 0:00:40]} 39. a4 {[%emt 0:00:08]} a6 {[%emt 0:00:38]} 40. Bc1 {[%emt 0:00:46]} c3 {[%emt 0:00:16]} 41. Kf2 {[%emt 0:01:09]} Kd3 {[%emt 0:00:10]} 42. Kf3 {[%emt 0:00:25]} Kc2 {[%emt 0:00:06]} 0-1